Cogmind - Beta 16 @@@ ROGUE MODE // 2026.01.26 @ 02:53:43 Player: eb Result: Destroyed by Autobeam Turret with Autobeam Performance ------------- Evolutions (0) 0 Regions Visited (2) 400 Robots Destroyed (12) 60 Value Destroyed (429) 429 Prototype IDs (12) 240 Alien Tech Used (0) 0 Bonus (0) 0 TOTAL SCORE: 1129 Bonus ------- None Cogmind --------- Core Integrity 0/250 Matter 194/300 Energy 196/200 System Corruption 0% Temperature Cool (8) Movement Walking (190) Ox1 Location -10/Subcaves Parts ------- > --- POWER (1) -------- Subdweller Power Source > --- PROPULSION (2) --- Aluminum Leg Aluminum Leg > --- UTILITY (2) ------ Medium Storage Unit Machine Analyzer > --- WEAPON (2) ------- Subdweller Beam Cannon Battle Cannon > --- INVENTORY (10) --- Subdweller Power Source Aluminum Leg Subdweller Monowheel Heat Sink Improved Terrain Scanner Tower Shield Makeshift Shrapnel Gun Peak State ------------ > --- POWER ------------ Subdweller Power Source > --- PROPULSION ------- Light Treads Light Treads > --- UTILITY ---------- Medium Storage Unit Machine Analyzer > --- WEAPON ----------- Subdweller Beam Cannon Makeshift Shrapnel Gun > --- INVENTORY -------- Subdweller Power Source Aluminum Leg Aluminum Leg Aluminum Leg Heat Sink Improved Terrain Scanner Tower Shield Assault Rifle Heavy Assault Rifle [Rating: 17] Favorites ----------- Power Subdweller Power Source Engine Subdweller Power Source Propulsion Light Treads Treads Light Treads Leg Aluminum Leg Wheel Wheel Utility Medium Storage Unit Device Heat Sink Storage Medium Storage Unit Processor Machine Analyzer Weapon Makeshift Shrapnel Gun Energy Gun Small Laser Energy Cannon Subdweller Beam Cannon Ballistic Gun Makeshift Shrapnel Gun Ballistic Cannon Battle Cannon Build | -11 -10 -10 ------- Run | Yrd Mat Sub Slots Evolved . | . . . Power . | . . . Propulsion . | . . . Utility . | . . . Weapon . | . . . Parts Attached 24 | 8 1 15 Power 5 | 1 . 4 Engine 5 | 1 . 4 Core . | . . . Reactor . | . . . Propulsion 6 | 2 . 4 Treads 2 | . . 2 Leg 2 | . . 2 Wheel 2 | 2 . . Hover . | . . . Flight . | . . . Utility 5 | 2 1 2 Device 2 | 1 . 1 Storage 2 | 1 1 . Processor 1 | . . 1 Hackware . | . . . Protection . | . . . Artifact . | . . . Weapon 8 | 3 . 5 Energy Gun 1 | 1 . . Energy Cannon 2 | . . 2 Ballistic Gun 4 | 2 . 2 Ballistic Cannon 1 | . . 1 Launcher . | . . . Special Weapon . | . . . Impact Weapon . | . . . Slashing Weapon . | . . . Piercing Weapon . | . . . Special Melee Weapon . | . . . Unidentified Prototypes . | . . . Parts Lost 3 | . . 3 Power . | . . . Propulsion 2 | . . 2 Utility . | . . . Weapon 1 | . . 1 Highest Loss Streak 2 | . . 2 To Critical Strikes . | . . . Average Backups 8 | 4 8 9 Power 2 | . 1 2 Propulsion 3 | 2 4 3 Utility 2 | . . 2 Weapon 1 | . 1 1 Tool/Special . | . . . Unused Backups 5 | . . 5 Power 1 | . . 1 Propulsion 2 | . . 2 Utility 2 | . . 2 Weapon . | . . . Tool/Special . | . . . Average Slot Usage (%) 99 | . 100 99 Engine 14 | . 14 14 Treads 22 | . . 24 Leg 1 | . . 1 Wheel 3 | . 28 1 Device 4 | . 14 3 Storage 14 | . 14 14 Processor 9 | . . 10 Energy Cannon 4 | . . 4 Ballistic Gun 22 | . 28 21 Peak Build Rating 17 | 9 10 17 Average Rating 13 | 5 9 13 On Entrance 6 | . 9 10 Avg Prop Armor Cover (%) . | . . . Naked Turns . | . . . Heaviest Build 26 | 15 20 26 Greatest Support 40 | 26 26 40 Greatest Overweight (x) 1 | . . 1 Average Overweight (x) . | . . . Largest Inventory Capacity 10 | 8 10 10 Average Capacity 9 | 7 9 10 Most Carried 10 | 7 10 10 Average Carried 9 | 4 8 9 Final Capacity 10 | 8 10 10 Final Carried 10 | 6 10 8 Class Distribution -------------------- 99% | Mutant Dominant Class ---------------- Mutant | -10/Materials Mutant | -10/Subcaves Resources | -11 -10 -10 ----------- Run | Yrd Mat Sub Matter Collected 723 | 229 68 426 Remotely . | . . . Salvage Created 445 | 14 68 363 Parts 32 | 5 4 23 Haulers Intercepted . | . . . Recyclers Shooed . | . . . Parts Field Recycled . | . . . Retrieved Matter . | . . . Parts Self-Destructed 16 | . . 16 Prevented . | . . . Parts Restored . | . . . Kills | -11 -10 -10 ------- Run | Yrd Mat Sub Combat Hostiles Destroyed 10 | . 1 9 Guns 7 | . 1 6 Cannons 3 | . . 3 Classes Destroyed 5 | 1 2 2 Tunneler 1 | 1 . . Watcher 1 | . 1 . Grunt 2 | . 1 1 Sentry 1 | . . 1 Subdweller 7 | . . 7 Best Kill Streak 2 | 1 1 2 Combat Bots Only 2 | . 1 2 Max Kills in Single Turn 1 | 1 1 1 Gunslinging . | . . . Exploded . | . . . Melee . | . . . Uniques/NPCs Destroyed . | . . . Combat | -11 -10 -10 -------- Run | Yrd Mat Sub Hostile Shots Fired 51 | . 5 46 Missed 14 | . 2 12 Hits 37 | . 3 34 Projectile 37 | . 3 34 Damage Taken 1024 | . 31 993 Core 256 | . . 256 Absorbed by Shields . | . . . Core Remaining (%) 100 | 100 . . Volleys Fired 74 | 3 13 58 Largest 2 | 2 2 2 Hottest 120 | 40 40 120 Shots Fired 129 | 6 26 97 Gun 108 | 6 26 76 Cannon 21 | . . 21 Launcher . | . . . Special . | . . . Kinetic 103 | 6 26 71 Thermal 26 | . . 26 Explosive . | . . . Electromagnetic . | . . . Robot Hit Streak 11 | 1 4 11 Robot Miss Streak 5 | 5 5 3 Penetration Max . | . . . Secondary Targets 1 | . . 1 Max Gunslinging Chain 1 | . . 1 Shots Hit Robots 61 | 1 12 48 Core Hits 24 | 1 4 19 Critical Kills . | . . . Critical Parts Destroyed . | . . . Critical Strikes 1 | . . 1 Destroy 1 | . . 1 Melee Attacks . | . . . Impact . | . . . Slashing . | . . . Piercing . | . . . Sneak Attacks . | . . . Combat Hostiles . | . . . Follow-up Attacks . | . . . Damage Inflicted 908 | 25 161 722 Guns 768 | 25 161 582 Cannons 140 | . . 140 Explosions . | . . . Melee . | . . . Ramming . | . . . Kinetic 745 | 25 161 559 Thermal 163 | . . 163 Explosive . | . . . Electromagnetic . | . . . Impact . | . . . Slashing . | . . . Piercing . | . . . Highest Corruption . | . . . Average Corruption . | . . . Corruption Purged . | . . . Corruption Blocked . | . . . Overload Shots . | . . . Overflow Damage . | . . . Projectiles . | . . . Explosions . | . . . Melee . | . . . Knockbacks . | . . . Impact . | . . . Kinetic . | . . . Secondary . | . . . Self-Inflicted Damage . | . . . Shots . | . . . Rammed . | . . . Targets Rammed . | . . . Kicked . | . . . Crushed . | . . . Highest Temperature 6 | . 6 . Average Temperature 6 | . 6 . Received Heat Transfer 231 | . 18 213 Siege Activations . | . . . Martial Activations . | . . . Shielding Activations . | . . . Robots Disrupted . | . . . Combat Hostiles . | . . . Robots Corrupted . | . . . Combat Hostiles . | . . . Parts Fried . | . . . Impact Corruptions . | . . . Robots Melted . | . . . Combat Hostiles . | . . . Parts Melted . | . . . Heat Transferred 235 | . . 235 Parts Sabotaged . | . . . Parts Stolen . | . . . Parts Stripped . | . . . Power Chain Reactions . | . . . Alert | -11 -10 -10 ------- Run | Yrd Mat Sub Maximum Alert Level . | . . . Low Security (%) 100 | 100 100 . Level 1 . | . . . Level 2 . | . . . Level 3 . | . . . Level 4 . | . . . Level 5 . | . . . High Security . | . . . Max Security . | . . . Peak Influence 30 | 5 30 . Initial . | . . . Average 2 | . 3 . Influence Increases 92 | 5 37 50 Destroy 0b10 Robot/C 60 | . 20 40 Destroy 0b10 Robot/NC 10 | 5 5 . Destroy Leader 22 | . 12 10 Influence Decreases 92 | 5 37 50 Time Decay 92 | 5 37 50 Squads Dispatched 1 | . 1 . Investigation . | . . . Extermination . | . . . Reinforcement 1 | . 1 . Assault . | . . . Garrison . | . . . Intercept . | . . . Searches Triggered . | . . . Construction Impeded . | . . . Haulers Reinforced . | . . . Active Scanning Responses . | . . . Cargo Convoy Interrupts . | . . . Stealth | -11 -10 -10 --------- Run | Yrd Mat Sub Distress Signals . | . . . Communications Jammed . | . . . Distress Signals . | . . . Times Spotted 15 | . 5 10 Peak Tracking Total 4 | . 1 4 Tactical Retreats . | . . . Traps | -11 -10 -10 ------- Run | Yrd Mat Sub Traps Triggered 5 | . . 5 Indirectly . | . . . Trap Hack Attempts . | . . . Triggered . | . . . Disarmed . | . . . Reprogrammed . | . . . Reused . | . . . Traps Extracted . | . . . Installed . | . . . Triggered . | . . . Machines | -11 -10 -10 ---------- Run | Yrd Mat Sub Machines Disabled 3 | . . 3 Max in Single Turn 2 | . . 2 Machines Repaired . | . . . Machines Dismantled . | . . . Machines Sabotaged . | . . . Overloaded Fab Kills . | . . . Hacking | -11 -10 -10 --------- Run | Yrd Mat Sub Machines Accessed 1 | . . 1 Terminals . | . . . Fabricators . | . . . Repair Stations . | . . . Recycling Units . | . . . Scanalyzers . | . . . Garrison Access . | . . . Total Hacks 9 | . . 9 Successful 9 | . . 9 Failed . | . . . Catastrophic . | . . . Database Lockouts . | . . . Manual 5 | . . 5 Terminals . | . . . Fabricators . | . . . Repair Stations . | . . . Recycling Units . | . . . Scanalyzers . | . . . Garrison Access . | . . . Terminal Hacks 9 | . . 9 Record 8 | . . 8 Proto ID Catalog 1 | . . 1 Fabricator Hacks . | . . . Repair Station Hacks . | . . . Recycling Unit Hacks . | . . . Scanalyzer . | . . . Garrison Access Hacks . | . . . Unauthorized Hacks . | . . . Terminals . | . . . Fabricators . | . . . Repair Stations . | . . . Recycling Units . | . . . Scanalyzers . | . . . Garrison Access . | . . . Data Cores Recovered . | . . . Used . | . . . Hacking Detections . | . . . Full Trace Events . | . . . Feedback Events . | . . . Feedback Blocked . | . . . Robot Schematics Acquired . | . . . Robots Built . | . . . Authchips . | . . . Time . | . . . Total Robot Build Rating . | . . . Part Schematics Acquired . | . . . Parts Built . | . . . Authchips . | . . . Time . | . . . Total Part Build Rating . | . . . Part Studies Acquired . | . . . Parts Repaired . | . . . Time . | . . . Parts Recycled . | . . . Recycled Matter . | . . . Retrieved Matter . | . . . Retrieved Components . | . . . Parts Scanalyzed . | . . . Part Schematics Acquired . | . . . Parts Damaged . | . . . Bothacking | -11 -10 -10 ------------ Run | Yrd Mat Sub Used RIF Installer . | . . . Robots Hacked . | . . . Non-combat . | . . . Combat . | . . . Robot Hacks Applied . | . . . Relay Couplers Released . | . . . Fabnet Peak Effective % . | . . . Robots Rewired . | . . . Allies Hacked . | . . . Hacks Repelled . | . . . Allies | -11 -10 -10 -------- Run | Yrd Mat Sub Total Allies . | . . . Largest Group . | . . . Highest-Rated Group . | . . . Highest-Rated Ally . | . . . Total Orders . | . . . Ally Attacks . | . . . Total Damage . | . . . Kills . | . . . Allies Corrupted . | . . . Allies Melted . | . . . Intel | -11 -10 -10 ------- Run | Yrd Mat Sub Active Infowar (turns) 2753 | 8 282 2463 Terrain 482 | 8 282 192 Machine Analysis 2271 | . . 2271 Robot Analysis Total . | . . . Derelict Logs Recovered 1 | . . 1 Drone Launches . | . . . Drone Recoveries . | . . . Exploration | -11 -10 -10 ------------- Run | Yrd Mat Sub Turns Passed 3318 | 87 282 2949 Spaces Moved 1984 | 69 224 1691 Core 4 | 4 . . Treads 1465 | . . 1465 Legs 84 | . . 84 Wheels 431 | 65 224 142 Hover . | . . . Flight . | . . . Fastest Speed 50 | 50 90 90 Average Speed 145 | 86 90 155 Slowest Speed 190 | 90 90 190 Overloaded Moves . | . . . Propulsion Burnouts . | . . . Robots Hopped . | . . . Potential Cave-ins . | . . . Cave-ins Triggered . | . . . Exploration Rate (%) 29 | 5 19 65 Regions Visited 2 Branch Regions 1 Pre-discovered Areas 1 | . . 1 Known Exits Taken . | . . . Unknown Exits Taken 2 | 1 1 . Scrap Searched . | . . . Spaces Dug . | . . . Terrain Destroyed 1 | . . 1 Melee . | . . . Projectile 1 | . . 1 AOE . | . . . Terrain Rammed . | . . . Walls Destroyed . | . . . Machines Disabled . | . . . Actions | -11 -10 -10 --------- Run | Yrd Mat Sub Total 2271 | 86 278 1907 Wait 153 | . 35 118 Move 1982 | 68 223 1691 Hop . | . . . Pick Up 20 | 7 5 8 Fast Attach 8 | 6 . 2 Attach 5 | 1 . 4 Detach 1 | . . 1 Swap 16 | 1 1 14 Drop 12 | . 1 11 Fire 74 | 3 13 58 Melee . | . . . Ram . | . . . Kick . | . . . Crush . | . . . Escape Stasis . | . . . Rewire . | . . . Trap . | . . . Miscellaneous . | . . . Route ------- -11/Scrapyard -10/Materials -10/Subcaves History --------- Turn | Location | Event 20 | -11/Scrapyard | Discovered new exit (range 14) 88 | -11/Scrapyard | Entered Materials 206 | -10/Materials | Discovered new exit (range 15) 303 | -10/Materials | Build established: Mutant 370 | -10/Materials | Entered Subcaves 371 | -10/Subcaves | Approached by a straggling Scientist 722 | -10/Subcaves | Core integrity fell below 50% 731 | -10/Subcaves | Core integrity fell below 20% 2590 | -10/Subcaves | Visited 4L-MR0's lab 2655 | -10/Subcaves | Found Tower Shield 3319 | -10/Subcaves | Destroyed by Autobeam Turret with Autobeam Last Messages --------------- 02654_ Dropped Lgt. Ion Engine. 02655_ Acquired Tower Shield. 02656_ 4L-MR0: "Uhh... I didn't see nothing, but you'd better hope DW-4LL doesn't find out you took that." 02819_ M8-OVO(u) builds Twisted Machinery. 02829_ Sub. Beam Cannon shoots sparks and powers down. 02840_ Dropped Broken Sub. Beam Cannon. 02899_ Subatomizers dissect the Disposable Heat Sink. 03081_ JV-1Q8(R): "SUBHATE!" 03109_ JV-1Q8(R) destroyed. 03112_ Acquired 58 matter. 03115_ Acquired Sub. Monowheel. 03116_ Dropped Assault Rifle. 03119_ Acquired Sub. Beam Cannon. 03124_ Subatomizers dissect the Assault Rifle. 03147_ Dropped Hvy. Assault Rifle. 03149_ Acquired Battle Cannon. 03159_ Dropped Lgt. Treads. 03207_ Subatomizers dissect the Hvy. Assault Rifle. 03220_ Subatomizers dissect the Hvy. Assault Rifle, destroying it. Map ----- +----------------------------------------------------+ | ?????????????????????????????????????????????????? | | ?????????????????????????????????????????????????? | | ?????????????????????????????????????????????????? | | ?????????????????????????????????????????????????? | | ?????????????????????????????????????????????????? | | ????????????????????????????????????????????????#? | | ?????????????????????????????????????????????????? | | ?????????????????????????????????????????????????# | | ?????????????????????????????????????????????????? | | ?????????????????????????????????????????????????? | | ??????????????????????? ?????????????????????????? | | ????????????????????? " ?????????????????????????? | | ???????????????????? t ?????????????????????????? | | ???????????????????? ?????????????????????????? | | #########?###?# ???? ????????????????????????? | | # # # ### #? ??? ????????????????????????? | | ##?? #??# ????????????????????????? | | # #### #???? ?# ????????????????????????? | | #####??## #????? # ????????????????????????? | | #??????# #?###### # ?????????????????????#??? | | ###????## ### ## ????????????????????????? | | #????## # ## ##????????????????#?????? | | #???## ### ## #??????????????????????? | | # #### ##?# #?# #??????????????????????? | | ## #?## ##?# #??????????????????????# | | ## #??# #??# @#######????????#####???? | | #### #??# ########## #####? | | ^## ## ##??# ## #? | | #### ##???# ## ??? | | ^#### #### ##???# ### ## #????# | | ##?## ##??# ####?## ##???? | | ^ ##?# #??### #??#??## ##### | | # ### ####?## #??????# # | | ## #??# ?????## | | ^ ##??# ??#### | | # ## ########### # # # | | ### ### ####?## ##### | | ## #### #?# = #?# #??# | | ######??## ####?# % #?#### ##??? | | ?????????####????## ##?#### ##???? | | ?????????????????### #????## ##???#? | | ??????????????????## #????## ##?????? | | ??????????????????# ##??## ##?##### | | ??????????????????## #??# ### #" | | ???????????????????#### #### & | | ??????????????????????# #### | | ??????????????????????# #?#### # ## | | ??????????????????????# ### #????######? | | ??????????????????????#### #### #??#?????#?? | | ?????????????????????#?### ### #?#????????# | +----------------------------------------------------+ Best States ------------- Heat Dissipation 35 Energy Generation 15 Energy Capacity 250 Matter Stores 300 Matter Capacity 300 Sight Range 16 Terrain Scan Range 16 Terrain Scan Density 10 Evasion (%) 44 Recoil Reduction 2 Item Schematics ----------------- None Robot Schematics ------------------ None Fabricated ------------ Nothing Repaired ---------- Nothing Studied --------- None Alien Tech Used ----------------- None Achievements -------------- Mistaken Identity Challenges ------------ None Game ------ Seed PartitionBlanketRecalibrator Manual? 0 Play Time 00:31:59 Cumulative 46.5 hours Start 2026.01.26 @ 02:23:53 End 2026.01.26 @ 02:53:43 Sessions 1 Manual Loads 0 Difficulty Rogue Special Mode None Game No. 33 Rogue 33 Adventurer 0 Explorer 0 Win Type - Total 3 Types 3/0/0/0/0/0/0/0/0/0 Lore% 17 Gallery% 34 Achievement% 21 Wizard Run 0 Options --------- Layout 0 ASCII 0 Keyboard 0 Movement Numpad Keybinds 0 Fullscreen 2 Font 24/Terminus Map View 76x50 Zoom Use 0% Tactical HUD 1 Map Filters NONE Filters NONE Steam 1 RUN: 0f888b04-b619-4731-be79-c5ebd2ca844e